fUST/lending_fUST_20260205
["ID","MTS","AMOUNT","RATE_DAILY","PERIOD"]
[404555213,1770286241787,-500.0,0.00056438,120]
[404555215,1770286241796,-1151.3,0.00056438,2]
[404555217,1770286241806,-500.0,0.00056438,120]
[404555219,1770286241815,-500.0,0.00056438,120]
[404555221,1770286241825,-1000.0,0.00056438,2]
[404555222,1770286241834,-500.0,0.00056438,120]
[404555224,1770286241844,-500.0,0.00056438,120]
[404555226,1770286241853,-500.0,0.00056438,120]
[404555228,1770286241862,-659.27,0.00056438,120]
[404555230,1770286241874,-200.0,0.00056438,120]
[404555232,1770286241885,-536.73499895,0.00056438,120]
[404555234,1770286241895,-500.0,0.00056438,120]
[404555236,1770286241904,-500.0,0.00056438,120]
[404555238,1770286241913,-500.0,0.00056438,120]
[404555239,1770286241922,-500.0,0.00056438,120]
[404555241,1770286241932,-500.0,0.00056438,120]
[404555243,1770286241941,-538.73,0.00056438,120]
[404555245,1770286241950,-1003.47,0.00056438,21]
[404555247,1770286241960,-500.0,0.00056438,120]
[404555249,1770286241969,-500.0,0.00056438,120]
[404555251,1770286241979,-500.0,0.00056438,120]
[404555253,1770286241988,-607.89749218,0.00056438,120]
[404555255,1770286241997,-986.51,0.00056438,120]
[404555257,1770286242006,-500.0,0.00056438,120]
[404555259,1770286242015,-538.38,0.00056438,120]
[404555260,1770286242024,-734.66,0.00056438,120]
[404555262,1770286242034,-500.0,0.00056438,120]
[404555264,1770286242043,-500.0,0.00056438,120]
[404555266,1770286242052,-553.53179889,0.00056438,120]
[404555268,1770286242062,-500.0,0.00056438,120]
[404555270,1770286242072,-507.22762645,0.00056438,60]
[404555272,1770286242081,-500.0,0.00056438,120]
[404555273,1770286242091,-561.9,0.00056438,120]
[404555275,1770286242100,-500.0,0.00056438,54]
[404555277,1770286242109,-500.0,0.00056438,120]
[404555279,1770286242119,-506.60462948,0.00056438,120]
[404555282,1770286242128,-500.0,0.00056438,60]
[404555284,1770286242137,-535.55943253,0.00056438,120]
[404555287,1770286242147,-650.58,0.00056438,120]
[404555290,1770286242156,-500.0,0.00056438,120]
[404555293,1770286242166,-500.0,0.00056438,120]
[404555296,1770286242175,-500.0,0.00056438,120]
[404555298,1770286242184,-153.0,0.000567,120]
[404555301,1770286242194,-1000.0,0.00056986,2]
[404555303,1770286242203,-436.35739121,0.00056986,120]
[404555305,1770286242212,-500.0,0.00056986,120]
[404555307,1770286242226,-546.07,0.00056986,120]
[404555309,1770286242235,-500.0,0.00056986,120]
[404555311,1770286242245,-206.52457207,0.00056986,120]
[404555313,1770286242253,-500.0,0.00056986,120]
[404555315,1770286242263,-500.0,0.00056986,120]
[404555316,1770286242272,-500.0,0.00056986,120]
[404555318,1770286242281,-513.6191975,0.00056986,120]
[404555320,1770286242290,-500.0,0.00056986,120]
[404555322,1770286242299,-1151.3,0.00056986,2]
[404555324,1770286242309,-500.0,0.00056986,120]
[404555326,1770286242318,-873.21328002,0.00056986,2]
[404555328,1770286242328,-500.0,0.00056986,120]
[404555330,1770286242337,-500.0,0.00056986,120]
[404555332,1770286242346,-659.27,0.00056986,120]
[404555334,1770286242355,-200.0,0.00056986,120]
[404555336,1770286242364,-500.0,0.00056986,120]
[404555337,1770286242373,-500.0,0.00056986,120]
[404555339,1770286242382,-500.0,0.00056986,120]
[404555341,1770286242391,-500.0,0.00056986,120]
[404555343,1770286242401,-538.73,0.00056986,120]
[404555345,1770286242410,-1003.47,0.00056986,21]
[404555347,1770286242419,-500.0,0.00056986,120]
[404555349,1770286242428,-500.0,0.00056986,120]
[404555351,1770286242437,-500.0,0.00056986,120]
[404555353,1770286242447,-986.51,0.00056986,120]
[404555355,1770286242456,-500.0,0.00056986,120]
[404555357,1770286242465,-538.38,0.00056986,120]
[404555359,1770286242474,-734.66,0.00056986,120]
[404555360,1770286242483,-500.0,0.00056986,120]
[404555362,1770286242492,-499.14787677,0.00056986,120]
[404555364,1770286242502,-500.0,0.00056986,120]
[404555366,1770286242511,-500.0,0.00056986,120]
[404555368,1770286242520,-561.9,0.00056986,120]
[404555370,1770286242529,-500.0,0.00056986,54]
[404555372,1770286242538,-500.0,0.00056986,120]
[404555374,1770286242548,-500.0,0.00056986,60]
[404555376,1770286242557,-650.58,0.00056986,120]
[404555378,1770286242566,-537.28536281,0.00056986,120]
[404555380,1770286242576,-500.0,0.00056986,120]
[404555382,1770286242585,-500.0,0.00057269,120]
[404555384,1770286242594,-1000.0,0.00057534,2]
[404555386,1770286242603,-500.0,0.00057534,120]
[404555387,1770286242612,-546.07,0.00057534,120]
[404555389,1770286242621,-500.0,0.00057534,120]
[404555391,1770286242631,-500.0,0.00057534,120]
[404555393,1770286242640,-625.09987688,0.00057534,120]
[404555394,1770286242649,-500.0,0.00057534,120]
[404555396,1770286242658,-500.0,0.00057534,120]
[404555398,1770286242667,-1151.3,0.00057534,2]
[404555399,1770286242676,-500.0,0.00057534,120]
[404555401,1770286242685,-500.0,0.00057534,120]
[404555403,1770286242695,-500.0,0.00057534,120]
[404555405,1770286242704,-659.27,0.00057534,120]
[404555407,1770286242713,-200.0,0.00057534,120]
[404555409,1770286242723,-500.0,0.00057534,120]
[404555411,1770286242732,-500.0,0.00057534,120]
[404555413,1770286242741,-500.0,0.00057534,120]
[404555415,1770286242750,-538.73,0.00057534,120]
[404555417,1770286242759,-1003.47,0.00057534,21]
[404555418,1770286242770,-500.0,0.00057534,120]
[404555420,1770286242779,-500.0,0.00057534,120]
[404555422,1770286242788,-500.0,0.00057534,120]
[404555424,1770286242797,-986.51,0.00057534,120]
[404555426,1770286242807,-500.0,0.00057534,120]
[404555428,1770286242816,-538.38,0.00057534,120]
[404555430,1770286242826,-734.66,0.00057534,120]
[404555432,1770286242835,-595.82288384,0.00057534,120]
[404555434,1770286242848,-500.0,0.00057534,120]
[404555435,1770286242857,-500.0,0.00057534,120]
[404555438,1770286242866,-561.9,0.00057534,120]
[404555441,1770286242876,-500.0,0.00057534,54]
[404555444,1770286242887,-500.0,0.00057534,120]
[404555446,1770286242896,-500.0,0.00057534,60]
[404555448,1770286242905,-650.58,0.00057534,120]
[404555450,1770286242916,-500.0,0.00057534,120]
[404555452,1770286242925,-61452.51,0.000576,14]
[404555453,1770286242935,-151.0,0.000576,120]
[404555455,1770286242944,-151.0,0.000576,120]
[404555457,1770286242953,-367.9161248,0.00058072,5]
[404555459,1770286242963,-1000.0,0.00058082,2]
[404555461,1770286242972,-500.0,0.00058082,120]
[404555463,1770286242982,-546.07,0.00058082,120]
[404555465,1770286242992,-500.0,0.00058082,120]
[404555467,1770286243001,-500.0,0.00058082,120]
[404555469,1770286243011,-500.0,0.00058082,120]
[404555470,1770286243020,-500.0,0.00058082,120]
[404555472,1770286243029,-1151.3,0.00058082,2]
[404555474,1770286243039,-500.0,0.00058082,120]
[404555476,1770286243048,-500.0,0.00058082,120]
[404555478,1770286243057,-659.27,0.00058082,120]
[404555480,1770286243067,-270.31345374,0.00058082,120]
[404555482,1770286243076,-500.0,0.00058082,120]
[404555484,1770286243086,-500.0,0.00058082,120]
[404555486,1770286243095,-500.0,0.00058082,120]
[404555487,1770286243105,-538.73,0.00058082,120]
[404555488,1770286243114,-1003.47,0.00058082,21]
[404555489,1770286243123,-500.0,0.00058082,120]
[404555490,1770286243132,-500.0,0.00058082,120]
[404555491,1770286243142,-638.28,0.00058082,120]
[404555492,1770286243151,-986.51,0.00058082,120]
[404555493,1770286243160,-500.0,0.00058082,120]
[404555494,1770286243169,-538.38,0.00058082,120]
[404555495,1770286243179,-734.66,0.00058082,120]
[404555496,1770286243189,-500.0,0.00058082,120]
[404555497,1770286243199,-500.0,0.00058082,120]
[404555498,1770286243209,-561.9,0.00058082,120]
[404555499,1770286243218,-500.0,0.00058082,54]
[404555500,1770286243227,-500.0,0.00058082,120]
[404555501,1770286243236,-500.0,0.00058082,60]
[404555502,1770286243246,-650.58,0.00058082,120]
[404555503,1770286243255,-500.0,0.00058082,120]
[404555504,1770286243265,-5000.0,0.00058178,120]
[404555505,1770286243346,-151.0,0.000582,26]
[404555506,1770286243356,-871.11476816,0.0005863,2]
[404555507,1770286243366,-500.0,0.0005863,120]
[404555508,1770286243375,-546.07,0.0005863,120]
[404555509,1770286243385,-500.0,0.0005863,120]
[404555510,1770286243394,-500.0,0.0005863,120]
[404555511,1770286243404,-500.0,0.0005863,120]
[404555512,1770286243413,-500.0,0.0005863,120]
[404555513,1770286243423,-1151.3,0.0005863,2]
[404555515,1770286243432,-500.0,0.0005863,120]
[404555516,1770286243441,-500.0,0.0005863,120]
[404555518,1770286243451,-659.27,0.0005863,120]
[404555520,1770286243461,-500.0,0.0005863,120]
[404555522,1770286243470,-631.00000001,0.0005863,120]
[404555524,1770286243479,-500.0,0.0005863,120]
[404555526,1770286243488,-538.73,0.0005863,120]
[404555528,1770286243498,-1003.47,0.0005863,21]
[404555530,1770286243506,-500.0,0.0005863,120]
[404555532,1770286243515,-500.0,0.0005863,120]
[404555533,1770286243525,-986.51,0.0005863,120]
[404555535,1770286243534,-500.0,0.0005863,120]
[404555537,1770286243543,-538.38,0.0005863,120]
[404555539,1770286243552,-734.66,0.0005863,120]
[404555541,1770286243562,-500.0,0.0005863,120]
[404555543,1770286243571,-500.0,0.0005863,120]
[404555545,1770286243584,-561.9,0.0005863,120]
[404555547,1770286243593,-500.0,0.0005863,54]
[404555549,1770286243602,-500.0,0.0005863,120]
[404555551,1770286243611,-350.0,0.0005863,60]
[404555553,1770286243620,-650.58,0.0005863,120]
[404555555,1770286243629,-500.0,0.0005863,120]
[404555557,1770286243637,-153.0,0.00059,120]
[404555559,1770286243646,-500.0,0.00059178,120]
[404555561,1770286243655,-546.07,0.00059178,120]
[404555563,1770286243664,-500.0,0.00059178,120]
[404555564,1770286243673,-500.0,0.00059178,120]
[404555566,1770286243683,-500.0,0.00059178,120]
[404555568,1770286243693,-500.0,0.00059178,120]
[404555570,1770286243702,-1151.3,0.00059178,2]
[404555572,1770286243711,-500.0,0.00059178,120]
[404555574,1770286243720,-571.53124556,0.00059178,120]
[404555576,1770286243729,-659.27,0.00059178,120]
[404555578,1770286243738,-500.0,0.00059178,120]
[404555580,1770286243747,-500.0,0.00059178,120]
[404555582,1770286243757,-538.73,0.00059178,120]
[404555584,1770286243766,-1003.47,0.00059178,21]
[404555586,1770286243775,-505.30446025,0.00059178,120]
[404555588,1770286243784,-500.0,0.00059178,120]
[404555590,1770286243793,-986.51,0.00059178,120]
[404555592,1770286243802,-538.38,0.00059178,120]
[404555594,1770286243812,-734.66,0.00059178,120]
[404555596,1770286243821,-500.0,0.00059178,120]
[404555597,1770286243832,-500.0,0.00059178,120]
[404555599,1770286243843,-561.9,0.00059178,120]
[404555601,1770286243852,-500.0,0.00059178,54]
[404555603,1770286243861,-500.0,0.00059178,120]
[404555605,1770286243870,-650.58,0.00059178,120]
[404555607,1770286243879,-500.29392046,0.00059178,120]
[404555609,1770286243889,-4086.26320637,0.0005948,2]
[404555611,1770286243898,-367.9161248,0.00059716,5]
[404555613,1770286243908,-500.0,0.00059726,120]
[404555615,1770286243917,-546.07,0.00059726,120]
[404555617,1770286243926,-500.0,0.00059726,120]
[404555619,1770286243935,-500.0,0.00059726,120]
[404555621,1770286243944,-500.0,0.00059726,120]
[404555623,1770286243955,-500.0,0.00059726,120]
[404555624,1770286243964,-1151.3,0.00059726,2]
[404555626,1770286243973,-504.52451878,0.00059726,120]
[404555628,1770286243982,-659.27,0.00059726,120]
[404555630,1770286243991,-500.0,0.00059726,120]
[404555632,1770286244000,-538.73,0.00059726,120]
[404555634,1770286244009,-1003.47,0.00059726,21]
[404555636,1770286244018,-500.0,0.00059726,120]
[404555638,1770286244028,-986.51,0.00059726,120]
[404555640,1770286244037,-538.38,0.00059726,120]
[404555642,1770286244047,-734.66,0.00059726,120]
[404555644,1770286244056,-500.0,0.00059726,120]
[404555646,1770286244065,-500.0,0.00059726,120]
[404555648,1770286244074,-561.9,0.00059726,120]
[404555650,1770286244084,-500.0,0.00059726,54]
[404555652,1770286244094,-500.0,0.00059726,120]
[404555654,1770286244103,-650.58,0.00059726,120]
[404555656,1770286244112,-1000.0,0.00059734,120]
[404555658,1770286244122,-244.0,0.00059734,120]
[404555660,1770286244131,-500.0,0.00060008,120]
[404555662,1770286244140,-500.0,0.00060273,120]
[404555663,1770286244149,-546.07,0.00060273,120]
[404555665,1770286244158,-500.0,0.00060273,120]
[404555667,1770286244168,-500.0,0.00060273,120]
[404555669,1770286244177,-500.0,0.00060273,120]
[404555671,1770286244187,-151.0,0.00060273,120]
[404555673,1770286244196,-500.0,0.00060273,120]
[404555675,1770286244205,-1151.3,0.00060273,2]
[404555677,1770286244214,-659.27,0.00060273,120]
[404555679,1770286244222,-500.0,0.00060273,120]
[404555681,1770286244231,-538.73,0.00060273,120]
[404555683,1770286244241,-1003.47,0.00060273,21]
[404555685,1770286244250,-500.0,0.00060273,120]
[404555687,1770286244259,-986.51,0.00060273,120]
[404555689,1770286244269,-538.38,0.00060273,120]
[404555691,1770286244278,-734.66,0.00060273,120]
[404555693,1770286244288,-500.0,0.00060273,120]
[404555695,1770286244297,-561.9,0.00060273,120]
[404555697,1770286244307,-500.0,0.00060273,54]
[404555699,1770286244316,-500.0,0.00060273,120]
[404555701,1770286244328,-650.58,0.00060273,120]
[404555703,1770286244337,-487.0,0.00060273,120]
[404555705,1770286244347,-487.0,0.00060273,120]
[404555707,1770286244358,-487.0,0.00060273,120]
[404555709,1770286244367,-487.0,0.00060273,120]
[404555711,1770286244377,-487.0,0.00060273,120]
[404555713,1770286244386,-863.57,0.00060273,120]
[404555715,1770286244396,-500.0,0.00060821,120]
[404555717,1770286244406,-546.07,0.00060821,120]
[404555718,1770286244415,-500.0,0.00060821,120]
[404555719,1770286244424,-500.0,0.00060821,120]
[404555720,1770286244433,-500.0,0.00060821,120]
[404555721,1770286244443,-500.0,0.00060821,120]
[404555722,1770286244452,-1151.3,0.00060821,2]
[404555723,1770286244461,-659.27,0.00060821,120]
[404555724,1770286244470,-500.0,0.00060821,120]
[404555725,1770286244479,-538.73,0.00060821,120]
[404555726,1770286244488,-1003.47,0.00060821,21]
[404555727,1770286244498,-500.0,0.00060821,120]
[404555728,1770286244507,-986.51,0.00060821,120]
[404555729,1770286244516,-538.38,0.00060821,120]
[404555730,1770286244525,-734.66,0.00060821,120]
[404555731,1770286244535,-500.0,0.00060821,120]
[404555732,1770286244545,-561.9,0.00060821,120]
[404555733,1770286244555,-523.5304141,0.00060821,54]
[404555734,1770286244564,-500.0,0.00060821,120]
[404555735,1770286244574,-650.58,0.00060821,120]
[404555736,1770286244584,-153.0,0.000612,120]
[404555737,1770286244594,-500.0,0.00061369,120]
[404555738,1770286244603,-546.07,0.00061369,120]
[404555740,1770286244613,-500.0,0.00061369,120]
[404555742,1770286244622,-500.0,0.00061369,120]
[404555743,1770286244631,-500.0,0.00061369,120]
[404555744,1770286244640,-1151.3,0.00061369,2]
[404555746,1770286244649,-659.27,0.00061369,120]
[404555748,1770286244658,-500.0,0.00061369,120]
[404555749,1770286244667,-538.73,0.00061369,120]
[404555751,1770286244677,-1003.47,0.00061369,21]
[404555752,1770286244685,-500.0,0.00061369,120]
[404555753,1770286244695,-986.51,0.00061369,120]
[404555754,1770286244704,-538.38,0.00061369,120]
[404555755,1770286244713,-734.66,0.00061369,120]
[404555756,1770286244721,-749.452221,0.00061369,120]
[404555757,1770286244731,-735.70975295,0.00061369,120]
[404555758,1770286244749,-13.74246805,0.00061369,120]
[404555759,1770286244758,-749.452221,0.00061369,120]
[404555760,1770286244766,-102.45494819,0.00061369,120]
[404555761,1770286244783,-500.0,0.00054794,120]
[404555762,1770286244792,-646.99727281,0.00061369,120]
[404555764,1770286244802,-500.0,0.00061369,120]
[404555765,1770286244812,-561.9,0.00061369,120]
[404555766,1770286244821,-500.0,0.00061369,120]
[404555767,1770286244831,-650.58,0.00061369,120]
[404555768,1770286244843,-62.81103928,0.00061906,5]
[404555769,1770286244854,-305.10508552,0.00061906,5]
[404555770,1770286244864,-2000.0,0.00061916,120]
[404555771,1770286244873,-1000.0,0.00061916,120]
[404555772,1770286244884,-1536.21508338,0.00061916,120]
[404555773,1770286244915,-463.78491662,0.00061916,120]
[404555774,1770286244924,-1000.0,0.00061916,120]
[404555775,1770286244934,-2000.0,0.00061916,120]
[404555776,1770286244943,-1000.0,0.00061916,120]
[404555777,1770286244952,-2000.0,0.00061916,120]
[404555778,1770286244961,-1000.0,0.00061916,120]
[404555779,1770286244970,-2000.0,0.00061916,120]
[404555780,1770286244979,-29.62356638,0.00061916,120]
[404555801,1770286245416,-500.0,0.00055342,120]
[404555802,1770286245426,-500.0,0.0005589,120]
[404555803,1770286245435,-500.0,0.00056438,120]
[404555804,1770286245445,-500.0,0.00056986,120]
[404555805,1770286245455,-639.99241071,0.00057534,120]
[404555806,1770286245465,-185.904148,0.000576,120]
[404555807,1770286245476,-403.60838889,0.00061916,120]
[404555808,1770286245485,-172.59382175,0.00061916,120]
[404555809,1770286245494,-250.0,0.00061916,120]
[404555810,1770286245503,-1000.0,0.00061916,120]
[404555811,1770286245512,-151.0,0.00061916,120]
[404555812,1770286245522,-151.0,0.00061916,120]
[404555813,1770286245531,-2000.0,0.00061916,120]
[404555814,1770286245540,-250.0,0.00061916,120]
[404555815,1770286245549,-1000.0,0.00061916,120]
[404555816,1770286245559,-156.587,0.00061916,120]
[404555817,1770286245568,-217.63717586,0.00061916,120]
[404555818,1770286245578,-2000.0,0.00061916,120]
[404555819,1770286245588,-250.0,0.00061916,120]
[404555820,1770286245597,-1000.0,0.00061916,120]
[404555821,1770286245607,-162.380719,0.00061916,120]
[404555822,1770286245616,-2000.0,0.00061916,120]
[404555823,1770286245625,-250.0,0.00061916,120]
[404555824,1770286245634,-1000.0,0.00061916,120]
[404555825,1770286245644,-168.3888056,0.00061916,120]
[404555826,1770286245653,-404.34205919,0.00061916,120]
[404555827,1770286245665,-661.98869106,0.00061916,120]
[404555836,1770286245804,-500.0,0.00054794,120]
[404555837,1770286245814,-500.0,0.00054794,120]
[404555838,1770286245823,-590.22277997,0.00054794,120]
[404555839,1770286245834,-500.0,0.00055342,120]
[404555840,1770286245846,-500.0,0.00055342,120]
[404555841,1770286245855,-600.0,0.00055889,120]
[404555842,1770286245863,-500.0,0.0005589,120]
[404555843,1770286245872,-500.0,0.0005589,120]
[404555844,1770286245882,-500.0,0.00056438,120]
[404555845,1770286245891,-500.0,0.00056438,120]
[404555846,1770286245901,-500.0,0.00056986,120]
[404555847,1770286245911,-500.0,0.00057534,120]
[404555848,1770286245922,-500.0,0.00058082,120]
[404555849,1770286245931,-500.0,0.0005863,120]
[404555850,1770286245940,-585.87566718,0.00059178,120]
[404555851,1770286245949,-720.0,0.00061478,120]
[404555852,1770286245959,-933.66924975,0.00061916,120]
[404555853,1770286245968,-1000.0,0.00061916,120]
[404555854,1770286245978,-250.0,0.00061916,120]
[404555855,1770286245988,-174.61919141,0.00061916,120]
[404555856,1770286245998,-250.0,0.00061916,120]
[404555857,1770286246009,-2000.0,0.00061916,120]
[404555858,1770286246018,-1000.0,0.00061916,120]
[404555859,1770286246028,-250.0,0.00061916,120]
[404555860,1770286246037,-181.08010149,0.00061916,120]
[404555861,1770286246047,-250.0,0.00061916,120]
[404555862,1770286246056,-250.0,0.00061916,120]
[404555863,1770286246065,-2000.0,0.00061916,120]
[404555864,1770286246074,-1000.0,0.00061916,120]
[404555865,1770286246084,-250.0,0.00061916,120]
[404555866,1770286246094,-187.78006525,0.00061916,120]
[404555867,1770286246103,-250.0,0.00061916,120]
[404555868,1770286246113,-250.0,0.00061916,120]
[404555869,1770286246122,-2000.0,0.00061916,120]
[404555870,1770286246131,-1000.0,0.00061916,120]
[404555871,1770286246140,-250.0,0.00061916,120]
[404555872,1770286246150,-194.72792766,0.00061916,120]
[404555873,1770286246159,-250.0,0.00061916,120]
[404555874,1770286246168,-250.0,0.00061916,120]
[404555875,1770286246178,-2000.0,0.00061916,120]
[404555876,1770286246187,-1000.0,0.00061916,120]
[404555877,1770286246196,-250.0,0.00061916,120]
[404555878,1770286246206,-201.93286099,0.00061916,120]
[404555879,1770286246215,-250.0,0.00061916,120]
[404555880,1770286246225,-2000.0,0.00061916,120]
[404555881,1770286246235,-1000.0,0.00061916,120]
[404555882,1770286246245,-209.40437684,0.00061916,120]
[404555883,1770286246255,-250.0,0.00061916,120]
[404555884,1770286246264,-250.0,0.00061916,120]
[404555885,1770286246273,-2000.0,0.00061916,120]
[404555886,1770286246282,-1000.0,0.00061916,120]
[404555887,1770286246291,-250.0,0.00061916,120]
[404555888,1770286246301,-217.15233878,0.00061916,120]
[404555889,1770286246310,-250.0,0.00061916,120]
[404555890,1770286246320,-250.0,0.00061916,120]
[404555891,1770286246331,-2000.0,0.00061916,120]
[404555892,1770286246340,-1000.0,0.00061916,120]
[404555893,1770286246352,-250.0,0.00061916,120]
[404555894,1770286246361,-225.18697532,0.00061916,120]
[404555895,1770286246371,-250.0,0.00061916,120]
[404555896,1770286246380,-250.0,0.00061916,120]
[404555897,1770286246390,-2000.0,0.00061916,120]
[404555898,1770286246399,-250.0,0.00061916,120]
[404555899,1770286246409,-1000.0,0.00061916,120]
[404555900,1770286246419,-250.0,0.00061916,120]
[404555901,1770286246428,-500.0,0.00061916,120]
[404555902,1770286246437,-233.51889341,0.00061916,120]
[404555903,1770286246446,-250.0,0.00061916,120]
[404555904,1770286246456,-2000.0,0.00061916,120]
[404555905,1770286246465,-250.0,0.00061916,120]
[404555906,1770286246474,-250.0,0.00061916,120]
[404555907,1770286246483,-1000.0,0.00061916,120]
[404555908,1770286246492,-250.0,0.00061916,120]
[404555909,1770286246501,-500.0,0.00061916,120]
[404555910,1770286246510,-242.15909246,0.00061916,120]
[404555911,1770286246520,-2000.0,0.00061916,120]
[404555912,1770286246529,-250.0,0.00061916,120]
[404555913,1770286246538,-250.0,0.00061916,120]
[404555914,1770286246548,-1000.0,0.00061916,120]
[404555915,1770286246557,-250.0,0.00061916,120]
[404555916,1770286246566,-500.0,0.00061916,120]
[404555917,1770286246575,-251.11897888,0.00061916,120]
[404555918,1770286246587,-2000.0,0.00061916,120]
[404555919,1770286246596,-1000.0,0.00061916,120]
[404555920,1770286246605,-250.0,0.00061916,120]
[404555921,1770286246615,-250.0,0.00061916,120]
[404555922,1770286246624,-500.0,0.00061916,120]
[404555923,1770286246633,-260.4103811,0.00061916,120]
[404555924,1770286246643,-250.0,0.00061916,120]
[404555925,1770286246652,-250.0,0.00061916,120]
[404555926,1770286246662,-250.0,0.00061916,120]
[404555927,1770286246671,-500.0,0.00061916,120]
[404555928,1770286246680,-270.0455652,0.00061916,120]
[404555929,1770286246690,-250.0,0.00061916,120]
[404555930,1770286246700,-250.0,0.00061916,120]
[404555931,1770286246710,-500.0,0.00061916,120]
[404555932,1770286246720,-250.0,0.00061916,120]
[404555933,1770286246730,-280.03725112,0.00061916,120]
[404555934,1770286246738,-250.0,0.00061916,120]
[404555935,1770286246747,-250.0,0.00061916,120]
[404555936,1770286246757,-250.0,0.00061916,120]
[404555937,1770286246766,-500.0,0.00061916,120]
[404555938,1770286246775,-290.39862941,0.00061916,120]
[404555939,1770286246784,-250.0,0.00061916,120]
[404555940,1770286246794,-250.0,0.00061916,120]
[404555941,1770286246803,-500.0,0.00061916,120]
[404555942,1770286246813,-250.0,0.00061916,120]
[404555943,1770286246822,-301.1433787,0.00061916,120]
[404555944,1770286246833,-250.0,0.00061916,120]
[404555945,1770286246846,-250.0,0.00061916,120]
[404555946,1770286246855,-500.0,0.00061916,120]
[404555947,1770286246866,-250.0,0.00061916,120]
[404555948,1770286246876,-250.0,0.00061916,120]
[404555949,1770286246887,-250.0,0.00061916,120]
[404555950,1770286246896,-261.00827298,0.00061916,120]
[404555951,1770286246907,-500.0,0.00061916,120]
[404555952,1770286246917,-250.0,0.00061916,120]
[404555953,1770286246927,-250.0,0.00061916,120]
[404555954,1770286246937,-168.78958132,0.00061916,120]
[404555955,1770286246948,-277.56568891,0.00061916,120]
[404555956,1770286246957,-250.0,0.00061916,120]
[404555957,1770286246967,-250.0,0.00061916,120]
[404555958,1770286246976,-500.0,0.00061916,120]
[404555959,1770286246985,-151.0,0.00061916,120]
[404555960,1770286246994,-250.0,0.00061916,120]
[404555961,1770286247004,-500.0,0.00061916,120]
[404555962,1770286247080,-250.0,0.00061916,120]
[404555963,1770286247090,-500.0,0.00061916,120]
[404555964,1770286247099,-151.0,0.00061916,120]
[404555965,1770286247108,-250.0,0.00061916,120]
[404555966,1770286247117,-500.0,0.00061916,120]
[404555967,1770286247126,-250.0,0.00061916,120]
[404555968,1770286247136,-500.0,0.00061916,120]
[404555969,1770286247145,-250.0,0.00061916,120]
[404555970,1770286247154,-250.0,0.00061916,120]
[404555971,1770286247164,-500.0,0.00061916,120]
[404555972,1770286247173,-500.0,0.00061916,120]
[404555973,1770286247183,-250.0,0.00061916,120]
[404555974,1770286247192,-500.0,0.00061916,120]
[404555975,1770286247201,-500.0,0.00061916,120]
[404555976,1770286247210,-250.0,0.00061916,120]
[404555977,1770286247219,-500.0,0.00061916,120]
[404555978,1770286247229,-500.0,0.00061916,120]
[404555979,1770286247238,-250.0,0.00061916,120]